fUSD/lending_fUSD_20240729
["ID","MTS","AMOUNT","RATE_DAILY","PERIOD"]
[333593039,1722264639898,-500.0,0.00010958,2]
[333593040,1722264639908,-500.0,0.00010958,2]
[333593041,1722264639917,-500.0,0.00010958,2]
[333593042,1722264639927,-500.0,0.00010958,2]
[333593043,1722264639936,-500.0,0.00010958,2]
[333593044,1722264639945,-500.0,0.00010958,2]
[333593045,1722264639955,-500.0,0.00010958,2]
[333593046,1722264639964,-1000.0,0.00010959,2]
[333593047,1722264639973,-1409.28,0.00010959,5]
[333593048,1722264639989,-250.0,0.00010959,2]
[333593049,1722264640002,-150.0,0.00010959,2]
[333593050,1722264640012,-500.0,0.00010964,2]
[333593051,1722264640021,-500.0,0.00010964,2]
[333593052,1722264640031,-500.0,0.00010964,2]
[333593053,1722264640040,-500.0,0.00010964,2]
[333593054,1722264640050,-214.41,0.00010964,2]
[333593055,1722264640059,-500.0,0.00010964,2]
[333593056,1722264640068,-500.0,0.00010964,2]
[333593057,1722264640078,-500.0,0.00010965,2]
[333593058,1722264640088,-500.0,0.00010965,2]
[333593059,1722264640097,-500.0,0.00010965,2]
[333593060,1722264640107,-500.0,0.00010965,2]
[333593061,1722264640116,-500.0,0.00010965,2]
[333593062,1722264640125,-500.0,0.00010965,2]
[333593063,1722264640134,-500.0,0.00010965,2]
[333593064,1722264640143,-500.0,0.00010965,2]
[333593065,1722264640153,-500.0,0.00010965,2]
[333593066,1722264640162,-500.0,0.00010965,2]
[333593067,1722264640173,-500.0,0.00010965,2]
[333593068,1722264640182,-511.41325689,0.00010965,2]
[333593069,1722264640192,-504.15,0.00010965,2]
[333593070,1722264640201,-517.29,0.00010965,2]
[333593071,1722264640211,-606.81,0.00010965,2]
[333593072,1722264640220,-639.55,0.00010965,2]
[333593073,1722264640229,-500.0,0.00010965,2]
[333593074,1722264640247,-500.0,0.00010965,2]
[333593075,1722264640260,-500.0,0.00010965,2]
[333593076,1722264640269,-500.0,0.00010965,2]
[333593077,1722264640278,-500.0,0.00010965,2]
[333593078,1722264640288,-500.0,0.00010965,2]
[333593079,1722264640297,-500.0,0.00010965,2]
[333593080,1722264640306,-500.0,0.00010965,2]
[333593081,1722264640315,-500.0,0.00010965,2]
[333593083,1722264640325,-500.0,0.00010965,2]
[333593085,1722264640334,-500.0,0.00010965,2]
[333593086,1722264640345,-500.0,0.00010965,2]
[333593087,1722264640354,-500.0,0.00010965,2]
[333593088,1722264640367,-500.0,0.00010965,2]
[333593089,1722264640377,-500.0,0.00010965,2]
[333593090,1722264640387,-500.0,0.00010965,2]
[333593091,1722264640396,-646.57,0.00010965,2]
[333593092,1722264640406,-500.0,0.00010965,2]
[333593093,1722264640415,-500.0,0.00010965,2]
[333593094,1722264640425,-502.68094126,0.00010965,2]
[333593095,1722264640435,-500.0,0.00010965,2]
[333593096,1722264640444,-500.0,0.00010965,2]
[333593097,1722264640453,-500.0,0.00010965,2]
[333593098,1722264640462,-500.0,0.00010965,2]
[333593099,1722264640471,-500.0,0.00010965,2]
[333593100,1722264640487,-410.56711067,0.00010965,2]
[333593101,1722264640499,-500.0,0.00010965,2]
[333593102,1722264640509,-500.0,0.00010965,2]
[333593103,1722264640518,-500.0,0.00010965,2]
[333593104,1722264640527,-519.72,0.00010965,2]
[333593105,1722264640537,-500.0,0.00010965,2]
[333593106,1722264640546,-500.0,0.00010965,2]
[333593107,1722264640555,-500.0,0.00010965,2]
[333593108,1722264640564,-500.0,0.00010965,2]
[333593109,1722264640573,-500.0,0.00010965,2]
[333593110,1722264640583,-500.0,0.00010965,2]
[333593111,1722264640592,-500.0,0.00010965,2]
[333593112,1722264640601,-500.0,0.00010965,2]
[333593113,1722264640610,-500.0,0.00010965,2]
[333593114,1722264640620,-500.0,0.00010965,2]
[333593115,1722264640630,-500.0,0.00010965,2]
[333593116,1722264640639,-500.0,0.00010965,2]
[333593117,1722264640648,-500.0,0.00010965,2]
[333593118,1722264640657,-500.0,0.00010965,2]
[333593119,1722264640666,-381.68813109,0.00010965,2]
[333593120,1722264640675,-202.69878787,0.00010965,2]
[333593121,1722264640685,-500.0,0.00010965,2]
[333593122,1722264640694,-500.0,0.00010965,2]
[333593123,1722264640703,-500.0,0.00010965,2]
[333593124,1722264640712,-500.0,0.00010965,2]
[333593125,1722264640722,-160.6934963,0.00010965,2]
[333593126,1722264640738,-518.2201222,0.00010965,2]
[333593127,1722264640747,-600.59628054,0.00010965,2]
[333593128,1722264640756,-500.0,0.00010965,2]
[333593129,1722264640765,-500.0,0.00010989,2]
[333593130,1722264640774,-421.54,0.00010989,2]
[333593131,1722264640785,-500.0,0.00010989,2]
[333593132,1722264640794,-500.0,0.00010989,2]
[333593133,1722264640804,-500.0,0.00010989,2]
[333593134,1722264640816,-500.0,0.00010989,2]
[333593135,1722264640825,-500.0,0.00010989,2]
[333593136,1722264640834,-500.0,0.00010989,2]
[333593137,1722264640843,-500.0,0.00010989,2]
[333593138,1722264640852,-500.0,0.00010989,2]
[333593139,1722264640862,-500.0,0.00010989,2]
[333593140,1722264640871,-500.0,0.00010989,2]
[333593141,1722264640880,-500.0,0.00010989,2]
[333593142,1722264640889,-500.0,0.00010989,2]
[333593143,1722264640899,-500.0,0.00010989,2]
[333593144,1722264640908,-500.0,0.00010989,2]
[333593145,1722264640918,-500.0,0.00010989,2]
[333593146,1722264640927,-500.0,0.00010989,2]
[333593147,1722264640936,-500.0,0.00010989,2]
[333593148,1722264640946,-527.88,0.00010989,2]
[333593149,1722264640955,-500.0,0.00010989,2]
[333593150,1722264640964,-500.0,0.00010989,2]
[333593151,1722264640974,-500.0,0.00010989,2]
[333593152,1722264640984,-500.0,0.00010989,2]
[333593153,1722264640993,-500.0,0.00010989,2]
[333593154,1722264641002,-500.0,0.00010989,2]
[333593155,1722264641015,-500.0,0.00010989,2]
[333593156,1722264641024,-500.0,0.00010989,2]
[333593157,1722264641033,-602.44,0.00010989,2]
[333593158,1722264641042,-500.0,0.00010989,2]
[333593159,1722264641051,-500.0,0.00010989,2]
[333593160,1722264641060,-500.0,0.00010989,2]
[333593161,1722264641070,-270.42826003,0.00010989,2]
[333593162,1722264641083,-229.57173997,0.00010989,2]
[333593163,1722264641092,-500.0,0.00010989,2]
[333593164,1722264641101,-500.0,0.00010989,2]
[333593165,1722264641111,-500.0,0.00010989,2]
[333593166,1722264641120,-500.0,0.00010989,2]
[333593167,1722264641129,-500.0,0.00010989,2]
[333593168,1722264641139,-500.0,0.00010989,2]
[333593169,1722264641148,-500.0,0.00010989,2]
[333593170,1722264641158,-500.0,0.00010989,2]
[333593171,1722264641167,-500.0,0.00010989,2]
[333593172,1722264641176,-500.0,0.00010989,2]
[333593173,1722264641186,-500.0,0.00010989,2]
[333593174,1722264641196,-500.0,0.00010989,2]
[333593175,1722264641205,-21496.90813298,0.0001099,6]
[333593176,1722264641215,-40773.52012704,0.0001099,2]
[333593177,1722264641227,-25997.12599993,0.0001099,2]
[333593178,1722264641241,-540.65357155,0.0001099,2]
[333593179,1722264641258,-25255.00000004,0.0001099,2]
[333593180,1722264641269,-18963.915,0.0001099,2]
[333593181,1722264641301,-8301.76127861,0.0001099,2]
[333593182,1722264641313,-1425.75194971,0.0001099,2]
[333593183,1722264641324,-10066.1744346,0.0001099,2]
[333593184,1722264641335,-819.45729106,0.0001099,2]
[333593185,1722264641351,-42363.42440152,0.0001099,2]
[333593186,1722264641372,-566.18888113,0.0001099,2]
[333593187,1722264641383,-346.25,0.0001099,2]
[333593188,1722264641396,-16012.5,0.0001099,2]
[333593189,1722264641407,-3906.81954123,0.0001099,2]
[333593190,1722264641418,-293.04699676,0.0001099,2]
[333593193,1722264644235,-499.935,0.00010958,2]
[333593197,1722264644247,-0.065,0.00010958,2]
[333593200,1722264644256,-361.85221112,0.00010958,2]
[333593202,1722264644267,-138.14778888,0.00010958,2]
[333593204,1722264644276,-2181.1482113,0.0001099,2]
[333593205,1722264644332,-1496.27037714,0.0001099,2]
[333593206,1722264644344,-3569.6177846,0.0001099,2]
[333593207,1722264644356,-1249.74849996,0.0001099,2]
[333593208,1722264644369,-2138.54995,0.0001099,2]
[333593209,1722264644380,-23802.92957847,0.0001099,2]
[333593210,1722264644434,-500.0,0.00010989,2]
[333593211,1722264644443,-19930.14612535,0.0001099,2]
[333593212,1722264644453,-300.0,0.00010998,2]
[333593213,1722264644462,-654.82093907,0.00010999,3]
[333593214,1722264644473,-500.0,0.00010999,2]
[333593215,1722264644485,-500.0,0.00010999,2]
[333593216,1722264644495,-500.0,0.00010999,2]
[333593217,1722264644505,-500.0,0.00010999,2]
[333593218,1722264644515,-500.0,0.00010999,2]
[333593219,1722264644525,-500.0,0.00010999,2]
[333593220,1722264644534,-596.56,0.00010999,2]
[333593221,1722264644543,-4091.61263181,0.00010999,2]
[333593222,1722264644553,-500.0,0.00010999,2]
[333593223,1722264644563,-500.0,0.00010999,2]
[333593224,1722264644572,-500.0,0.00010999,2]
[333593225,1722264644581,-500.0,0.00010999,2]
[333593226,1722264644593,-500.0,0.00010999,2]
[333593227,1722264644603,-401.62,0.00010999,2]
[333593229,1722264644613,-500.0,0.00010999,2]
[333593230,1722264644622,-500.0,0.00010999,2]
[333593232,1722264644631,-500.0,0.00010999,2]
[333593234,1722264644641,-500.0,0.00010999,2]
[333593236,1722264644650,-336.20530863,0.00010999,2]
[333593238,1722264644660,-500.0,0.00010999,2]
[333593240,1722264644669,-500.0,0.00010999,2]
[333593242,1722264644679,-500.0,0.00010999,2]
[333593244,1722264644688,-151.74,0.00010999,2]
[333593246,1722264644698,-543.43445307,0.00010999,2]
[333593248,1722264644707,-300.63,0.00010999,2]
[333593250,1722264644717,-500.0,0.00010999,2]
[333593252,1722264644726,-423.38,0.00010999,2]
[333593254,1722264644738,-500.0,0.00010999,2]
[333593256,1722264644747,-500.0,0.00010999,2]
[333593258,1722264644756,-500.0,0.00010999,2]
[333593260,1722264644765,-633.86000001,0.00010999,2]
[333593262,1722264644775,-500.0,0.00010999,2]
[333593264,1722264644785,-415.74,0.00010999,2]
[333593266,1722264644794,-500.0,0.00010999,2]
[333593268,1722264644804,-500.0,0.00010999,2]
[333593270,1722264644814,-500.0,0.00010999,2]
[333593272,1722264644823,-500.0,0.00010999,2]
[333593274,1722264644833,-500.0,0.00010999,2]
[333593276,1722264644842,-273.03025975,0.00010999,2]
[333593278,1722264644851,-542.66,0.00010999,2]
[333593279,1722264644861,-500.0,0.00010999,2]
[333593281,1722264644869,-239.06,0.00010999,2]
[333593283,1722264644879,-631.18,0.00010999,2]
[333593285,1722264644889,-553.88,0.00010999,2]
[333593287,1722264644899,-500.0,0.00010999,2]
[333593289,1722264644908,-500.0,0.00010999,2]
[333593291,1722264644917,-500.0,0.00010999,2]
[333593293,1722264644927,-530.40017171,0.00010999,2]
[333593295,1722264644936,-500.0,0.00010999,2]
[333593297,1722264644945,-500.0,0.00010999,2]
[333593299,1722264644956,-500.0,0.00010999,2]
[333593301,1722264644965,-500.0,0.00010999,2]
[333593303,1722264644975,-337.0,0.00010999,2]
[333593305,1722264644986,-500.0,0.00010999,2]
[333593307,1722264644995,-554.14,0.00010999,2]
[333593309,1722264645004,-500.0,0.00010999,2]
[333593310,1722264645014,-500.0,0.00010999,2]
[333593312,1722264645024,-500.0,0.00010999,2]
[333593313,1722264645033,-500.0,0.00010999,2]
[333593314,1722264645042,-500.0,0.00010999,2]
[333593316,1722264645051,-215.54,0.00010999,2]
[333593317,1722264645061,-500.0,0.00010999,2]
[333593318,1722264645070,-500.0,0.00010999,2]
[333593320,1722264645079,-500.0,0.00010999,2]
[333593321,1722264645088,-500.0,0.00010999,2]
[333593323,1722264645098,-500.0,0.00010999,2]
[333593325,1722264645107,-467.86346235,0.00010999,2]
[333593327,1722264645116,-500.0,0.00010999,2]
[333593329,1722264645125,-500.0,0.00010999,2]
[333593331,1722264645135,-500.0,0.00010999,2]
[333593333,1722264645144,-547.97000001,0.00010999,2]
[333593335,1722264645153,-500.0,0.00010999,2]
[333593337,1722264645162,-604.32,0.00010999,2]
[333593339,1722264645171,-500.0,0.00010999,2]
[333593341,1722264645181,-500.0,0.00010999,2]
[333593342,1722264645190,-562.36,0.00010999,2]
[333593343,1722264645199,-500.0,0.00010999,2]
[333593345,1722264645209,-648.37,0.00010999,2]
[333593347,1722264645218,-582.57,0.00010999,2]
[333593349,1722264645228,-500.0,0.00010999,2]
[333593350,1722264645241,-500.0,0.00010999,2]
[333593352,1722264645251,-500.0,0.00010999,2]
[333593353,1722264645261,-500.0,0.00010999,2]
[333593354,1722264645271,-500.0,0.00010999,2]
[333593355,1722264645280,-500.0,0.00010999,2]
[333593356,1722264645290,-289.19,0.00010999,2]
[333593357,1722264645300,-279.62155731,0.00010999,2]
[333593358,1722264645309,-500.0,0.00010999,2]
[333593359,1722264645319,-500.0,0.00010999,2]
[333593360,1722264645328,-582.58,0.00010999,2]
[333593361,1722264645338,-500.0,0.00010999,2]
[333593362,1722264645349,-500.0,0.00010999,2]
[333593363,1722264645362,-500.0,0.00010999,2]
[333593364,1722264645372,-382.60008386,0.00010999,2]
[333593365,1722264645381,-500.0,0.00010999,2]
[333593366,1722264645392,-500.0,0.00010999,2]
[333593367,1722264645401,-500.0,0.00010999,2]
[333593368,1722264645410,-500.0,0.00010999,2]
[333593369,1722264645420,-500.0,0.00010999,2]
[333593370,1722264645430,-500.0,0.00010999,2]
[333593371,1722264645440,-500.0,0.00010999,2]
[333593372,1722264645450,-500.0,0.00010999,2]
[333593373,1722264645459,-500.0,0.00010999,2]
[333593374,1722264645468,-500.0,0.00010999,2]
[333593375,1722264645477,-500.0,0.00010999,2]
[333593376,1722264645489,-500.0,0.00010999,2]
[333593377,1722264645498,-500.0,0.00010999,2]
[333593378,1722264645507,-500.0,0.00010999,2]
[333593379,1722264645516,-237.74,0.00010999,2]
[333593380,1722264645526,-500.0,0.00010999,2]
[333593381,1722264645535,-500.0,0.00010999,2]
[333593382,1722264645544,-413.2,0.00010999,2]
[333593383,1722264645554,-500.0,0.00010999,2]
[333593384,1722264645563,-500.0,0.00010999,2]
[333593385,1722264645572,-200.01,0.00010999,2]
[333593386,1722264645581,-1370.0,0.00010999,2]
[333593387,1722264645590,-1540.304,0.00010999,2]
[333593388,1722264645599,-150.0,0.00010999,2]
[333593389,1722264645608,-608.0,0.00011,2]
[333593390,1722264645617,-247546.09843402,0.00011,2]
[333593391,1722264645626,-16790.25194633,0.00011,2]
[333593392,1722264645639,-704.09202264,0.00011,2]
[333593393,1722264645650,-10454.79182026,0.00011,2]
[333593394,1722264645662,-10282.98649999,0.00011,2]
[333593395,1722264645672,-1963.25914205,0.00011,2]
[333593396,1722264645684,-706405.69928091,0.00011,2]
[333593397,1722264645695,-1670.0339732,0.00011,2]
[333593398,1722264645706,-5873.89872731,0.00011,2]
[333593399,1722264645717,-261.22288255,0.00011,2]
[333593400,1722264645728,-46169.74721777,0.00011,2]
[333593401,1722264645744,-704.38948625,0.00011,2]
[333593402,1722264645756,-49845.0,0.00011,2]
[333593403,1722264645767,-251.624732,0.00011,2]
[333593404,1722264645778,-302.76800001,0.00011,2]
[333593405,1722264645790,-227070.84780434,0.00011,2]
[333593406,1722264645802,-4112.61326764,0.00011,2]
[333593407,1722264645814,-53005.6,0.00011,2]
[333593408,1722264645826,-6855.90067227,0.00011,2]
[333593409,1722264645840,-2051.96602235,0.00011,2]
[333593410,1722264645851,-1407.09470452,0.00011,2]
[333593411,1722264645862,-5495.36723242,0.00011,2]
[333593412,1722264645874,-13815.19568082,0.00011,2]
[333593413,1722264645885,-1746.04129229,0.00011,2]
[333593414,1722264645897,-566.37876372,0.00011,2]
[333593415,1722264645915,-530.52,0.00010999,2]
[333593416,1722264645925,-19909.43268357,0.00011,2]
[333593417,1722264645937,-651.33802245,0.00011,2]
[333593418,1722264645948,-1794.18698479,0.00011,2]
[333593429,1722264646498,-500.0,0.00010989,2]
[333593432,1722264646509,-399.37,0.00010999,2]
[333593434,1722264646518,-19493.02491144,0.00011,2]
[333593436,1722264646530,-3187.19048631,0.00011,2]
[333593441,1722264646567,-1556.80625385,0.00011,2]
[333593443,1722264646578,-3353.83109984,0.00011,2]
[333593445,1722264646590,-6897.2,0.00011,2]
[333593447,1722264646601,-6709.0289375,0.00011,2]
[333593452,1722264646633,-25600.61538751,0.00011,2]
[333593454,1722264646644,-2210.0,0.00011,2]
[333593456,1722264646657,-1149.49488646,0.00011,2]
[333593458,1722264646668,-739.79148217,0.00011,2]
[333593459,1722264646680,-1644.15644672,0.00011,2]
[333593460,1722264646692,-1331.13658926,0.00011,2]
[333593463,1722264646708,-6223.91249305,0.00011,2]
[333593465,1722264646719,-920.11067912,0.00011,2]
[333593467,1722264646730,-1218.62654909,0.00011,2]
[333593472,1722264646767,-1501.02251226,0.00011,2]
[333593474,1722264646778,-1780.43176568,0.00011,2]
[333593476,1722264646790,-976.23531354,0.00011,2]
[333593478,1722264646801,-1657.25362323,0.00011,2]
[333593480,1722264646813,-950.81443091,0.00011,2]
[333593482,1722264646824,-689.87,0.00011,2]
[333593484,1722264646836,-580.23278742,0.00011,2]
[333593486,1722264646848,-264.419,0.00011,2]
[333593488,1722264646859,-1344.69267959,0.00011,2]
[333593512,1722264655889,70458.7820527,6.766e-05,2]
[333593513,1722264655914,709.51791215,6.766e-05,2]
[333593514,1722264668061,9290.48208785,6.766e-05,2]
[333593515,1722264668084,10000.0,6.766e-05,2]
[333593516,1722264668107,10000.0,6.766e-05,2]
[333593517,1722264668131,10000.0,6.766e-05,2]
[333593518,1722264668154,10000.0,6.766e-05,2]
[333593519,1722264668178,10000.0,6.766e-05,2]
[333593520,1722264668200,10000.0,6.766e-05,2]
[333593521,1722264668223,1877.817877,6.766e-05,2]
[333593523,1722264696903,8122.182123,6.766e-05,2]
[333593524,1722264696924,1139.82314518,6.766e-05,2]
[333593525,1722264696965,485.15634905,6.766e-05,2]
[333593530,1722264737094,2936.32198343,6.766e-05,2]
[333593531,1722264744009,218.99,0.00020505,120]
[333593535,1722264770102,1000.0,0.00020505,120]
[333593540,1722265349613,2207.08092049,0.00017,60]
[333593549,1722265609255,2207.56195178,0.00015,30]
[333593550,1722265633333,5438.69852234,6.781e-05,7]
[333593551,1722265633354,10000.0,6.781e-05,7]
[333593552,1722265633374,10000.0,6.781e-05,7]
[333593553,1722265633395,10000.0,6.781e-05,7]
[333593554,1722265633415,10000.0,6.781e-05,7]
[333593555,1722265633435,10000.0,6.781e-05,7]
[333593556,1722265633455,10000.0,6.781e-05,7]
[333593557,1722265633476,5505.64787236,6.781e-05,7]
[333593559,1722265676105,4494.35212764,6.781e-05,2]
[333593560,1722265676125,10000.0,6.781e-05,2]
[333593561,1722265676145,5877.07671539,6.781e-05,2]
[333593562,1722265677428,4122.92328461,6.781e-05,2]
[333593563,1722265677450,5139.08198357,6.781e-05,2]
[333593564,1722265677895,1369.83582042,6.781e-05,2]
[333593566,1722265686210,3491.08219601,6.781e-05,2]
[333593568,1722265754124,-150.0,6.78e-05,2]
[333593569,1722265754146,-300.0,6.78e-05,2]
[333593570,1722265754167,-907.0,6.781e-05,2]
[333593572,1722265815353,-300.0,6.78e-05,2]
[333593573,1722265815375,-3173.25350709,6.781e-05,2]
[333593574,1722265815395,-158.86061706,6.781e-05,2]
[333593575,1722265815416,-1246.5674367,6.781e-05,2]
[333593576,1722265815437,-155.0,6.781e-05,2]
[333593577,1722265815457,-1201.57050272,6.781e-05,2]
[333593578,1722265815478,-291.30856985,6.781e-05,2]
[333593579,1722265815498,-586.67296438,6.781e-05,2]
[333593580,1722265815518,-179.97721001,6.781e-05,2]
[333593581,1722265815545,-3451.78919219,6.781e-05,2]
[333593597,1722265831597,-941.26867698,6.781e-05,2]
[333593599,1722265831610,-600.0,6.781e-05,2]
[333593605,1722265831673,-315.04,6.781e-05,2]
[333593606,1722265831686,-1371.99623965,6.781e-05,2]
[333593607,1722265831699,-1234.06473915,6.781e-05,2]
[333593608,1722265831712,-12457.26999506,6.781e-05,2]
[333593609,1722265831722,-1370.0029794,6.781e-05,2]
[333593611,1722265831736,-155.0,6.781e-05,2]
[333593612,1722265831747,-155.2039469,6.781e-05,2]
[333593614,1722265831759,-6498.5088626,6.781e-05,2]
[333593617,1722265831779,-341.42630098,6.781e-05,2]
[333593620,1722265831792,-2422.0701046,6.781e-05,2]
[333593622,1722265831807,-804.89593487,6.781e-05,2]
[333593624,1722265831817,-1108.317685,8.178e-05,2]
[333593626,1722265831830,-663.46,8.219e-05,2]
[333593628,1722265831840,-261.784,9.218e-05,2]
[333593630,1722265831850,-1000.0,9.306e-05,2]
[333593632,1722265831860,-250.0,9.345e-05,2]
[333593634,1722265831870,-1682.11,9.347e-05,2]
[333593636,1722265831879,-2000.0,9.361e-05,2]
[333593638,1722265831889,-2892.7,9.375e-05,2]
[333593639,1722265831898,-511.62,9.67e-05,2]
[333593640,1722265831908,-321.39,9.87e-05,2]
[333593641,1722265831918,-499.99,9.87e-05,2]
[333593642,1722265831928,-321.39,9.872e-05,2]
[333593643,1722265831938,-648.78,9.872e-05,2]
[333593644,1722265831948,-321.39,9.875e-05,2]
[333593645,1722265831958,-321.39,9.878e-05,2]
[333593646,1722265831968,-321.39,9.88e-05,2]
[333593647,1722265831978,-321.39,9.883e-05,2]
[333593648,1722265831988,-321.39,9.886e-05,2]
[333593649,1722265831998,-321.39,9.888e-05,2]
[333593650,1722265832009,-321.39,9.891e-05,2]
[333593651,1722265832019,-321.39,9.893e-05,2]
[333593652,1722265832029,-321.39,9.896e-05,2]
[333593653,1722265832038,-321.39,9.899e-05,2]
[333593654,1722265832051,-321.39,9.901e-05,2]
[333593655,1722265832060,-321.39,9.904e-05,2]
[333593656,1722265832070,-321.39,9.906e-05,2]
[333593657,1722265832079,-321.39,9.909e-05,2]
[333593658,1722265832089,-321.39,9.912e-05,2]
[333593659,1722265832098,-321.39,9.914e-05,2]
[333593660,1722265832108,-321.39,9.917e-05,2]
[333593662,1722265832118,-321.39,9.919e-05,2]
[333593664,1722265832128,-6569.86339497,0.0001,2]
[333593666,1722265832137,-1250.0,0.0001,2]
[333593667,1722265832146,-1015.12602919,0.00010089,2]
[333593668,1722265832156,-355.93,0.00010192,2]
[333593669,1722265832165,-162.57,0.00010278,2]
[333593670,1722265832174,-663.46,0.00010441,2]
[333593671,1722265832184,-2857.0,0.00010447,2]
[333593672,1722265832193,-1000.0,0.00010469,2]
[333593673,1722265832203,-600.0,0.00010509,2]
[333593674,1722265832212,-1994.979677,0.00010513,2]
[333593675,1722265832222,-204.979457,0.00010513,2]
[333593676,1722265832231,-271.676338,0.00010513,2]
[333593677,1722265832241,-2097.858605,0.00010513,2]
[333593678,1722265832250,-398.995935,0.00010513,2]
[333593679,1722265832259,-360.009472,0.00010513,2]
[333593680,1722265832268,-500.0,0.00010522,2]
[333593681,1722265832278,-500.0,0.0001053,2]
[333593682,1722265832287,-500.0,0.00010539,2]
[333593683,1722265832299,-500.0,0.00010548,2]
[333593684,1722265832308,-500.0,0.00010557,2]
[333593685,1722265832318,-500.0,0.00010566,2]
[333593686,1722265832328,-500.0,0.00010574,2]
[333593687,1722265832337,-500.0,0.00010583,2]
[333593688,1722265832347,-500.0,0.00010592,2]
[333593689,1722265832356,-500.0,0.00010601,2]
[333593690,1722265832365,-500.0,0.0001061,2]
[333593691,1722265832375,-500.0,0.00010618,2]
[333593692,1722265832384,-500.0,0.00010627,2]
[333593693,1722265832393,-500.0,0.00010636,2]
[333593694,1722265832402,-1994.979677,0.00010644,2]
[333593695,1722265832411,-2097.858605,0.00010644,2]
[333593696,1722265832420,-398.995935,0.00010644,2]
[333593697,1722265832430,-360.009472,0.00010644,2]
[333593698,1722265832439,-500.0,0.00010645,2]
[333593699,1722265832449,-500.0,0.00010654,2]
[333593700,1722265832459,-500.0,0.00010662,2]
[333593701,1722265832468,-500.0,0.00010671,2]
[333593702,1722265832477,-500.0,0.0001068,2]
[333593703,1722265832486,-500.0,0.00010689,2]
[333593704,1722265832495,-500.0,0.00010698,2]
[333593705,1722265832504,-500.0,0.00010706,2]
[333593706,1722265832513,-500.0,0.00010715,2]
[333593707,1722265832523,-500.0,0.00010724,2]
[333593708,1722265832532,-500.0,0.00010733,2]
[333593709,1722265832541,-500.0,0.00010742,2]
[333593710,1722265832551,-8334.6724,0.00010753,2]
[333593711,1722265832560,-6690.0,0.00010753,2]
[333593712,1722265832569,-7500.0,0.00010772,2]
[333593713,1722265832578,-1994.979677,0.00010775,2]
[333593714,1722265832587,-2097.858605,0.00010775,2]
[333593715,1722265832596,-398.995935,0.00010775,2]
[333593716,1722265832605,-360.009472,0.00010775,2]
[333593717,1722265832614,-161.50266836,0.00010787,2]
[333593718,1722265832623,-208.0,0.0001079,2]
[333593719,1722265832632,-2080.2335,0.000108,2]
[333593720,1722265832641,-491.985,0.000108,2]
[333593721,1722265832650,-224.9761,0.000108,2]
[333593722,1722265832659,-4646.20585372,0.00010853,2]
[333593723,1722265832669,-134193.73037353,0.00010853,2]
[333593724,1722265832679,-4646.20585372,0.00010858,2]
[333593725,1722265832688,-8312.0095,0.00010858,2]
[333593726,1722265832697,-600.0,0.00010864,2]
[333593727,1722265832707,-29384.30395928,0.0001087,2]
[333593728,1722265832716,-134193.73037353,0.00010872,2]
[333593729,1722265832725,-43182.91392317,0.00010876,2]
[333593730,1722265832940,-821.72,0.00010876,2]
[333593731,1722265832952,-271.2999999,0.00010876,2]
[333593732,1722265832964,-89917.79645046,0.00010876,2]
[333593733,1722265832974,-29384.30395928,0.00010886,2]
[333593734,1722265832983,-4646.20585372,0.00010887,2]
[333593735,1722265832993,-29384.30395928,0.00010889,2]
[333593736,1722265833002,-3093.06255668,0.00010899,2]